fUSD/lending_fUSD_20260130
["ID","MTS","AMOUNT","RATE_DAILY","PERIOD"]
[404065598,1769780366123,900.0,0.000136,4]
[404065599,1769780368159,1900.0,0.000137,5]
[404065600,1769780370297,2900.0,0.000138,5]
[404065601,1769780372398,3900.0,0.000139,5]
[404065605,1769780445886,209.41,0.00013393,2]
[404065606,1769780539741,151.0,0.00012956,2]
[404065607,1769780540404,156.587,0.00012956,2]
[404065608,1769780541059,162.380719,0.00012956,2]
[404065609,1769780541676,157.32475157,0.00012956,2]
[404065610,1769780589571,198.21495822,0.00013431,2]
[404065611,1769780686556,1306.84,0.00013308,2]
[404065612,1769780738109,1875.15,0.00013129,2]
[404065614,1769780790286,200.0,0.00013129,2]
[404065615,1769780814810,3240.0,0.00013425,2]
[404065616,1769780822443,700.0,0.000136,4]
[404065617,1769780824636,1400.0,0.000137,5]
[404065618,1769780826617,2100.0,0.000138,5]
[404065619,1769780828717,2800.0,0.000139,5]
[404065626,1769781000685,500.0,0.00013107,2]
[404065637,1769781031886,-264.0,0.00013866,2]
[404065638,1769781031896,-420.04363611,0.00013866,2]
[404065639,1769781031906,-2046.61224842,0.00013866,2]
[404065640,1769781031947,-520.14728809,0.00013866,2]
[404065641,1769781031958,-300.0,0.00013881,2]
[404065642,1769781031968,-218.86227694,0.00013881,2]
[404065643,1769781032007,-259.85,0.00013881,2]
[404065644,1769781032062,-721.28772306,0.00013881,2]
[404065645,1769781032078,-300.0,0.00013881,2]
[404065646,1769781032088,-30.88176647,0.00013881,2]
[404065647,1769781032101,-269.11823353,0.00013881,2]
[404065648,1769781032111,-333.8,0.00013882,2]
[404065649,1769781032121,-195.0,0.00013882,2]
[404065651,1769781032131,-600.0,0.00013882,2]
[404065653,1769781032141,-2500.0,0.00013882,2]
[404065655,1769781032151,-195.0,0.00013882,2]
[404065657,1769781032161,-195.0,0.00013882,2]
[404065659,1769781032170,-170.997504,0.00013882,2]
[404065661,1769781032179,-600.0,0.00013882,2]
[404065663,1769781032189,-201.55532227,0.00013882,2]
[404065665,1769781032199,-2500.0,0.00013882,2]
[404065667,1769781032208,-300.0,0.00013882,2]
[404065669,1769781032218,-440.50526138,0.00013882,2]
[404065671,1769781032227,-170.997504,0.00013883,2]
[404065673,1769781032237,-170.997504,0.00013883,2]
[404065675,1769781032247,-249.62,0.000139,2]
[404065677,1769781032257,-300.0,0.0001392,2]
[404065679,1769781032266,-150.0,0.00013966,2]
[404065681,1769781032276,-1200.0,0.00013966,2]
[404065683,1769781032286,-3118.22,0.00013967,2]
[404065685,1769781032295,-1285.88,0.00013967,2]
[404065687,1769781032305,-9999.99,0.00013967,2]
[404065689,1769781032314,-500.0,0.00014005,2]
[404065691,1769781032326,-500.0,0.00014005,2]
[404065694,1769781032337,-500.0,0.00014005,2]
[404065695,1769781032346,-500.0,0.00014005,2]
[404065697,1769781032356,-150.0,0.00014005,2]
[404065699,1769781032365,-179.8228,0.00014051,2]
[404065701,1769781032375,-500.0,0.0001406,2]
[404065703,1769781032385,-500.0,0.0001406,2]
[404065705,1769781032395,-500.0,0.0001406,2]
[404065707,1769781032405,-500.0,0.0001406,2]
[404065726,1769781032719,-382.0,0.000141,2]
[404065728,1769781032728,-500.0,0.00014115,2]
[404065730,1769781032739,-500.0,0.00014115,2]
[404065732,1769781032748,-350.0,0.00014115,2]
[404065734,1769781032757,-500.0,0.00014115,2]
[404065736,1769781032766,-500.0,0.00014169,2]
[404065738,1769781032776,-500.0,0.00014169,2]
[404065740,1769781032785,-237.2007,0.00014182,2]
[404065742,1769781032795,-2500.0,0.00014182,2]
[404065744,1769781032805,-1000.0,0.00014184,2]
[404065746,1769781032814,-26388.22553096,0.00014185,2]
[404065748,1769781032823,-6212.72852846,0.00014187,2]
[404065750,1769781032832,-1494.42526183,0.00014204,2]
[404065752,1769781032842,-919.94660724,0.00014204,2]
[404065754,1769781032852,-2823.2252017,0.00014204,2]
[404065756,1769781032861,-42361.40075696,0.00014204,2]
[404065758,1769781032871,-493.96048366,0.00014224,2]
[404065760,1769781032880,-500.0,0.00014224,2]
[404065762,1769781032890,-363.0,0.00014255,2]
[404065764,1769781032899,-500.0,0.00014274,2]
[404065766,1769781032908,-500.0,0.00014277,2]
[404065768,1769781032917,-150.0,0.00014277,2]
[404065770,1769781032926,-1224.41925829,0.00014278,2]
[404065772,1769781032935,-500.0,0.00014279,2]
[404065774,1769781032944,-1548.02,0.00014279,2]
[404065776,1769781032953,-500.0,0.00014279,2]
[404065778,1769781032963,-151.0,0.00014279,2]
[404065780,1769781032972,-200.0,0.00014279,2]
[404065782,1769781032981,-500.0,0.00014279,2]
[404065784,1769781032991,-151.0,0.00014279,2]
[404065786,1769781033000,-200.0,0.00014279,2]
[404065788,1769781033009,-500.0,0.00014279,2]
[404065790,1769781033019,-500.0,0.00014279,2]
[404065792,1769781033033,-154.17794606,0.00014279,2]
[404065794,1769781033043,-500.0,0.00014279,2]
[404065796,1769781033052,-500.0,0.00014279,2]
[404065798,1769781033062,-500.0,0.00014279,2]
[404065800,1769781033073,-151.0,0.00014279,2]
[404065802,1769781033084,-151.0,0.00014279,2]
[404065804,1769781033094,-151.0,0.00014279,2]
[404065806,1769781033104,-151.0,0.00014279,2]
[404065808,1769781033113,-151.0,0.00014279,2]
[404065810,1769781033123,-151.0,0.00014279,2]
[404065812,1769781033132,-151.0,0.00014279,2]
[404065814,1769781033142,-151.0,0.00014279,2]
[404065816,1769781033151,-151.0,0.00014279,2]
[404065818,1769781033160,-151.0,0.00014279,2]
[404065820,1769781033171,-151.0,0.00014279,2]
[404065822,1769781033180,-151.0,0.00014279,2]
[404065824,1769781033190,-151.0,0.00014279,2]
[404065826,1769781033199,-151.0,0.00014279,2]
[404065828,1769781033208,-151.0,0.00014279,2]
[404065830,1769781033221,-151.0,0.00014279,2]
[404065832,1769781033230,-151.0,0.00014279,2]
[404065834,1769781033239,-151.0,0.00014279,2]
[404065836,1769781033249,-151.0,0.00014279,2]
[404065838,1769781033259,-151.0,0.00014279,2]
[404065840,1769781033268,-1082.0,0.00014282,2]
[404065842,1769781033277,-91338.33619324,0.00014282,2]
[404065844,1769781033286,-256.0,0.00014284,2]
[404065846,1769781033296,-151.0,0.00014285,2]
[404065848,1769781033305,-151.0,0.00014285,2]
[404065850,1769781033315,-151.0,0.00014285,2]
[404065852,1769781033324,-500.0,0.00014286,2]
[404065854,1769781033333,-502.28343568,0.00014286,2]
[404065856,1769781033342,-500.0,0.00014286,2]
[404065858,1769781033351,-500.0,0.00014286,2]
[404065860,1769781033360,-500.0,0.00014286,2]
[404065862,1769781033369,-500.0,0.00014286,2]
[404065864,1769781033379,-169.71523397,0.00014286,2]
[404065866,1769781033388,-500.0,0.00014286,2]
[404065867,1769781033398,-155.0,0.00014286,2]
[404065869,1769781033407,-500.0,0.00014286,2]
[404065871,1769781033416,-191.65534537,0.00014287,2]
[404065874,1769781033426,-500.0,0.00014287,2]
[404065877,1769781033446,-500.0,0.00014287,2]
[404065879,1769781033456,-575.76474128,0.00014287,2]
[404065881,1769781033465,-162.71078742,0.00014287,2]
[404065883,1769781033475,-500.0,0.00014287,2]
[404065885,1769781033491,-500.0,0.00014287,2]
[404065887,1769781033501,-459.21833754,0.00014287,2]
[404065889,1769781033511,-246.11353562,0.00014287,2]
[404065891,1769781033520,-500.0,0.00014287,2]
[404065893,1769781033530,-500.0,0.00014287,2]
[404065895,1769781033539,-500.0,0.00014287,2]
[404065897,1769781033549,-500.0,0.00014287,2]
[404065899,1769781033559,-500.0,0.00014287,2]
[404065902,1769781033568,-500.0,0.00014287,2]
[404065903,1769781033579,-1217.79017836,0.00014287,2]
[404065905,1769781033589,-500.0,0.00014287,2]
[404065908,1769781033599,-500.0,0.00014287,2]
[404065910,1769781033613,-564.41967997,0.00014287,2]
[404065912,1769781033622,-1217.79017836,0.00014287,2]
[404065914,1769781033631,-254.10007489,0.00014287,2]
[404065916,1769781033640,-500.0,0.00014287,2]
[404065918,1769781033650,-500.0,0.00014287,2]
[404065920,1769781033660,-500.0,0.00014287,2]
[404065922,1769781033670,-1217.79017836,0.00014287,2]
[404065924,1769781033679,-500.0,0.00014287,2]
[404065926,1769781033688,-1217.79017836,0.00014287,2]
[404065928,1769781033698,-256.99754468,0.00014287,2]
[404065930,1769781033708,-1217.79017836,0.00014287,2]
[404065932,1769781033717,-500.0,0.00014287,2]
[404065934,1769781033726,-1217.79017836,0.00014287,2]
[404065936,1769781033735,-1217.79017836,0.00014287,2]
[404065937,1769781033744,-500.0,0.00014287,2]
[404065938,1769781033754,-1217.79017836,0.00014287,2]
[404065939,1769781033763,-1217.79017836,0.00014287,2]
[404065940,1769781033773,-500.0,0.00014287,2]
[404065941,1769781033783,-1217.79017836,0.00014287,2]
[404065942,1769781033793,-1217.79017836,0.00014287,2]
[404065943,1769781033803,-312.72337146,0.00014287,2]
[404065944,1769781033812,-1217.79017836,0.00014287,2]
[404065945,1769781033826,-500.0,0.00014287,2]
[404065946,1769781033836,-1217.79017836,0.00014287,2]
[404065947,1769781033848,-1217.79017836,0.00014287,2]
[404065948,1769781033858,-500.0,0.00014287,2]
[404065949,1769781033867,-1217.79017836,0.00014287,2]
[404065950,1769781033878,-1217.79017836,0.00014287,2]
[404065951,1769781033889,-1217.79017836,0.00014287,2]
[404065952,1769781033900,-1217.79017836,0.00014287,2]
[404065953,1769781033909,-1217.79017836,0.00014287,2]
[404065954,1769781033919,-1217.79017836,0.00014287,2]
[404065955,1769781033931,-1217.79017836,0.00014287,2]
[404065956,1769781033942,-1217.79017836,0.00014287,2]
[404065957,1769781033953,-1217.79017836,0.00014287,2]
[404065958,1769781033964,-1217.79017836,0.00014287,2]
[404065959,1769781033975,-1217.79017836,0.00014287,2]
[404065960,1769781033986,-1217.79017836,0.00014287,2]
[404065961,1769781034000,-1217.79017836,0.00014287,2]
[404065962,1769781034011,-1217.79017836,0.00014287,2]
[404065963,1769781034022,-1217.79017836,0.00014287,2]
[404065964,1769781034036,-1217.79017836,0.00014287,2]
[404065965,1769781034047,-1217.79017836,0.00014287,2]
[404065966,1769781034058,-1217.79017836,0.00014287,2]
[404065967,1769781034068,-1217.79017836,0.00014287,2]
[404065968,1769781034079,-1217.79017836,0.00014287,2]
[404065969,1769781034090,-1217.79017836,0.00014287,2]
[404065970,1769781034100,-1217.79017836,0.00014287,2]
[404065971,1769781034112,-1217.79017836,0.00014287,2]
[404065972,1769781034122,-1217.79017836,0.00014287,2]
[404065973,1769781034133,-1217.79017836,0.00014287,2]
[404065974,1769781034143,-1217.79017836,0.00014287,2]
[404065975,1769781034153,-1217.79017836,0.00014287,2]
[404065976,1769781034163,-1217.79017836,0.00014287,2]
[404065977,1769781034174,-1217.79017836,0.00014287,2]
[404065978,1769781034185,-1217.79017836,0.00014287,2]
[404065979,1769781034198,-1217.79017836,0.00014287,2]
[404065980,1769781034209,-1217.79017836,0.00014287,2]
[404065981,1769781034219,-1217.79017836,0.00014287,2]
[404065982,1769781034231,-1217.79017836,0.00014287,2]
[404065983,1769781034243,-1217.79017836,0.00014287,2]
[404065984,1769781034253,-1217.79017836,0.00014287,2]
[404065985,1769781034263,-1217.79017836,0.00014287,2]
[404065986,1769781034274,-1217.79017836,0.00014287,2]
[404065987,1769781034285,-1217.79017836,0.00014287,2]
[404065988,1769781034295,-1217.79017836,0.00014287,2]
[404065989,1769781034306,-1217.79017836,0.00014287,2]
[404065990,1769781034316,-1217.79017836,0.00014287,2]
[404065991,1769781034328,-1217.79017836,0.00014287,2]
[404065992,1769781034338,-1217.79017836,0.00014287,2]
[404065993,1769781034349,-1217.79017836,0.00014287,2]
[404065994,1769781034360,-1217.79017836,0.00014287,2]
[404065995,1769781034369,-1217.79017836,0.00014287,2]
[404065996,1769781034380,-173.82440888,0.00014287,2]
[404065997,1769781034390,-1487.44371786,0.00014287,2]
[404065998,1769781034404,-1487.44371786,0.00014287,2]
[404065999,1769781034414,-1487.44371786,0.00014287,2]
[404066000,1769781034425,-1487.44371786,0.00014287,2]
[404066001,1769781034434,-1487.44371786,0.00014287,2]
[404066002,1769781034444,-1487.44371786,0.00014287,2]
[404066003,1769781034456,-1487.44371786,0.00014287,2]
[404066004,1769781034466,-1487.44371786,0.00014287,2]
[404066005,1769781034476,-1487.44371786,0.00014287,2]
[404066006,1769781034487,-1487.44371786,0.00014287,2]
[404066007,1769781034497,-1487.44371786,0.00014287,2]
[404066008,1769781034507,-1487.44371786,0.00014287,2]
[404066009,1769781034517,-1487.44371786,0.00014287,2]
[404066010,1769781034528,-1487.44371786,0.00014287,2]
[404066011,1769781034538,-1487.44371786,0.00014287,2]
[404066012,1769781034548,-1487.44371786,0.00014287,2]
[404066013,1769781034558,-1487.44371786,0.00014287,2]
[404066014,1769781034568,-1487.44371786,0.00014287,2]
[404066015,1769781034579,-1487.44371786,0.00014287,2]
[404066016,1769781034593,-1487.44371786,0.00014287,2]
[404066017,1769781034604,-1487.44371786,0.00014287,2]
[404066018,1769781034614,-1487.44371786,0.00014287,2]
[404066019,1769781034624,-1487.44371786,0.00014287,2]
[404066020,1769781034634,-1487.44371786,0.00014287,2]
[404066021,1769781034644,-500.0,0.00014287,2]
[404066022,1769781034655,-342.84674472,0.00014287,2]
[404066023,1769781034666,-500.0,0.00014287,2]
[404066024,1769781034676,-531.74116736,0.00014287,2]
[404066025,1769781034687,-500.0,0.00014287,2]
[404066026,1769781034697,-500.0,0.00014287,2]
[404066027,1769781034707,-414.71781927,0.00014287,2]
[404066028,1769781034717,-500.0,0.00014287,2]
[404066029,1769781034728,-500.0,0.00014287,2]
[404066030,1769781034738,-500.0,0.00014287,2]
[404066031,1769781034748,-500.0,0.00014287,2]
[404066032,1769781034759,-500.0,0.00014287,2]
[404066033,1769781034770,-500.0,0.00014287,2]
[404066034,1769781034780,-500.0,0.00014287,2]
[404066035,1769781034793,-500.0,0.00014287,2]
[404066036,1769781034802,-500.0,0.00014287,2]
[404066037,1769781034812,-500.0,0.00014287,2]
[404066038,1769781034822,-500.0,0.00014287,2]
[404066039,1769781034835,-500.0,0.00014287,2]
[404066040,1769781034845,-514.83889524,0.00014287,2]
[404066041,1769781034855,-500.0,0.00014287,2]
[404066042,1769781034865,-572.92100435,0.00014287,2]
[404066043,1769781034874,-500.0,0.00014287,2]
[404066044,1769781034885,-500.0,0.00014287,2]
[404066045,1769781034895,-500.0,0.00014287,2]
[404066046,1769781034904,-542.58663084,0.00014287,2]
[404066047,1769781034914,-877272.07570292,0.00014288,2]
[404066048,1769781034931,-90649.69897634,0.00014288,2]
[404066049,1769781034944,-43011.64439302,0.00014288,2]
[404066050,1769781034957,-165486.92888063,0.00014288,2]
[404066056,1769781038900,-3199.48917838,0.00014288,2]
[404066057,1769781038912,-4000.0,0.00014288,2]
[404066058,1769781038923,-469.14007354,0.00014288,2]
[404066059,1769781038960,-477.01024154,0.00014288,2]
[404066060,1769781038971,-1563.61745328,0.00014288,2]
[404066061,1769781038983,-1362.74,0.00014288,2]
[404066062,1769781039026,-260.25,0.00014288,2]
[404066063,1769781039043,-10920.52374146,0.00014288,2]
[404066064,1769781039057,-23894.96710464,0.00014288,2]
[404066065,1769781039068,-164700.23174696,0.00014288,2]
[404066066,1769781039080,-1012731.68250729,0.00014288,2]
[404066067,1769781039091,-7874.30407594,0.00014304,2]
[404066068,1769781039100,-1959.0,0.00014333,2]
[404066069,1769781039112,-255.0,0.00014333,2]
[404066070,1769781039122,-500.0,0.00014334,2]
[404066071,1769781039131,-813.23354895,0.00014349,2]
[404066072,1769781039140,-1630.44140131,0.00014361,2]
[404066073,1769781039150,-266.0,0.00014361,2]
[404066074,1769781039159,-606.0,0.00014381,2]
[404066075,1769781039169,-1257.0,0.00014384,2]
[404066076,1769781039179,-500.0,0.00014389,2]
[404066077,1769781039188,-2806.1669173,0.00014403,2]
[404066078,1769781039198,-500.0,0.00014403,2]
[404066079,1769781039208,-542.83339749,0.00014403,2]
[404066080,1769781039218,-239.21968935,0.00014403,2]
[404066082,1769781039227,-500.0,0.00014403,2]
[404066084,1769781039237,-500.0,0.00014404,2]
[404066085,1769781039246,-500.0,0.00014404,2]
[404066087,1769781039255,-500.0,0.00014404,2]
[404066089,1769781039267,-500.0,0.00014404,2]
[404066091,1769781039276,-500.0,0.00014404,2]
[404066093,1769781039286,-500.0,0.00014404,2]
[404066095,1769781039294,-161.45556103,0.00014404,2]
[404066097,1769781039303,-500.0,0.00014404,2]
[404066098,1769781039313,-500.0,0.00014404,2]
[404066100,1769781039323,-500.0,0.00014404,2]
[404066102,1769781039332,-500.0,0.00014404,2]
[404066104,1769781039342,-500.0,0.00014404,2]
[404066106,1769781039351,-500.0,0.00014404,2]
[404066108,1769781039361,-599.11588893,0.00014404,2]
[404066110,1769781039370,-348.75558421,0.00014404,2]
[404066112,1769781039379,-500.0,0.00014404,2]
[404066114,1769781039389,-500.0,0.00014404,2]
[404066116,1769781039398,-500.0,0.00014404,2]
[404066118,1769781039409,-292.00606776,0.00014404,2]
[404066120,1769781039419,-500.0,0.00014404,2]
[404066122,1769781039429,-500.0,0.00014404,2]
[404066124,1769781039438,-500.0,0.00014404,2]
[404066126,1769781039447,-500.0,0.00014404,2]
[404066128,1769781039456,-500.0,0.00014404,2]
[404066129,1769781039466,-500.0,0.00014404,2]
[404066131,1769781039475,-500.0,0.00014404,2]
[404066133,1769781039484,-500.0,0.00014404,2]
[404066135,1769781039493,-500.0,0.00014404,2]
[404066137,1769781039502,-500.0,0.00014404,2]
[404066139,1769781039511,-500.0,0.00014404,2]
[404066141,1769781039521,-500.0,0.00014404,2]
[404066143,1769781039530,-500.0,0.00014404,2]
[404066144,1769781039540,-500.0,0.00014404,2]
[404066145,1769781039550,-500.0,0.00014404,2]
[404066146,1769781039561,-500.0,0.00014404,2]
[404066147,1769781039572,-500.0,0.00014404,2]
[404066148,1769781039581,-500.0,0.00014404,2]
[404066149,1769781039591,-500.0,0.00014404,2]
[404066150,1769781039601,-620.13152007,0.00014404,2]
[404066151,1769781039611,-500.0,0.00014404,2]
[404066152,1769781039621,-500.0,0.00014404,2]
[404066153,1769781039631,-500.0,0.00014404,2]
[404066154,1769781039640,-500.0,0.00014404,2]
[404066155,1769781039650,-500.0,0.00014404,2]
[404066156,1769781039659,-500.0,0.00014404,2]
[404066157,1769781039670,-500.0,0.00014404,2]
[404066158,1769781039680,-500.0,0.00014404,2]
[404066159,1769781039689,-500.0,0.00014404,2]
[404066160,1769781039699,-500.0,0.00014404,2]
[404066161,1769781039709,-545.27,0.00014404,2]
[404066162,1769781039719,-545.27,0.00014404,2]
[404066163,1769781039728,-545.27,0.00014404,2]
[404066164,1769781039738,-545.27,0.00014404,2]
[404066165,1769781039748,-545.27,0.00014404,2]
[404066166,1769781039758,-545.27,0.00014404,2]
[404066167,1769781039768,-545.27,0.00014404,2]
[404066168,1769781039779,-545.27,0.00014404,2]
[404066169,1769781039788,-545.27,0.00014404,2]
[404066170,1769781039797,-545.27,0.00014404,2]
[404066171,1769781039807,-500.0,0.00014404,2]
[404066172,1769781039818,-500.0,0.00014404,2]
[404066173,1769781039828,-500.0,0.00014404,2]
[404066174,1769781039838,-500.0,0.00014404,2]
[404066175,1769781039847,-500.0,0.00014404,2]
[404066176,1769781039856,-500.0,0.00014404,2]
[404066177,1769781039867,-500.0,0.00014404,2]
[404066178,1769781039877,-500.0,0.00014404,2]
[404066179,1769781039887,-500.0,0.00014404,2]
[404066181,1769781039896,-500.0,0.00014404,2]
[404066182,1769781039905,-500.0,0.00014404,2]
[404066183,1769781039914,-500.0,0.00014404,2]
[404066184,1769781039924,-500.0,0.00014404,2]
[404066185,1769781039934,-500.0,0.00014404,2]
[404066186,1769781039943,-199.0120644,0.00014404,2]
[404066187,1769781039953,-583.17626574,0.00014404,2]
[404066188,1769781039964,-500.0,0.00014404,2]
[404066189,1769781039974,-500.0,0.00014404,2]
[404066190,1769781039984,-500.0,0.00014404,2]
[404066191,1769781039996,-500.0,0.00014404,2]
[404066192,1769781040005,-500.0,0.00014404,2]
[404066193,1769781040014,-500.0,0.00014404,2]
[404066194,1769781040024,-500.0,0.00014404,2]
[404066195,1769781040038,-500.0,0.00014404,2]
[404066196,1769781040047,-500.0,0.00014404,2]
[404066197,1769781040059,-500.0,0.00014404,2]
[404066198,1769781040071,-500.0,0.00014404,2]
[404066199,1769781040081,-500.0,0.00014443,2]
[404066200,1769781040091,-341.0,0.00014449,2]
[404066201,1769781040101,-500.0,0.00014488,2]
[404066202,1769781040112,-500.0,0.00014488,2]
[404066203,1769781040121,-500.0,0.00014488,2]
[404066204,1769781040131,-500.0,0.00014488,2]
[404066205,1769781040140,-500.0,0.00014498,2]
[404066206,1769781040149,-500.0,0.00014548,2]
[404066207,1769781040158,-500.0,0.00014553,2]
[404066208,1769781040167,-1548.02,0.00014553,2]
[404066209,1769781040177,-600.0,0.00014556,2]
[404066210,1769781040186,-382.0,0.00014573,2]
[404066211,1769781040195,-287.11,0.00014574,2]
[404066212,1769781040204,-333.8,0.00014576,2]
[404066213,1769781040214,-26388.22553089,0.00014598,2]
[404066214,1769781040223,-500.0,0.00014608,2]
[404066215,1769781040232,-151.0,0.00014612,2]
[404066216,1769781040241,-666.0,0.00014614,2]
[404066217,1769781040250,-42361.40075688,0.00014615,2]
[404066218,1769781040260,-166.66,0.0001465,2]
[404066219,1769781040271,-367.64368357,0.00014663,2]
[404066220,1769781040280,-6212.7285284,0.00014717,2]
[404066221,1769781040289,-2397.55470837,0.00014762,2]
[404066222,1769781040299,-500.0,0.00014778,2]
[404066223,1769781040308,-545.27,0.00014778,2]
[404066224,1769781040318,-500.0,0.00014778,2]
[404066225,1769781040327,-500.0,0.00014778,2]
[404066226,1769781040340,-500.0,0.00014822,2]
[404066227,1769781040349,-1548.02,0.00014827,2]
[404066228,1769781040358,-200.0,0.00014827,2]
[404066229,1769781040367,-200.0,0.00014827,2]
[404066230,1769781040376,-500.0,0.00014827,2]
[404066231,1769781040385,-155.0569489,0.000149,2]
[404066232,1769781040396,-1036.55784544,0.00014904,2]
[404066233,1769781040407,-166.66,0.00014959,2]
[404066234,1769781040417,-378.0,0.00014975,2]
[404066235,1769781040427,-382.0,0.00014992,2]
[404066236,1769781040438,-26388.22553089,0.00015011,2]
[404066237,1769781040448,-500.0,0.00015024,2]
[404066238,1769781040458,-42361.40075688,0.00015025,2]
[404066240,1769781040467,-500.0,0.00015055,2]
[404066241,1769781040477,-500.0,0.00015055,2]
[404066242,1769781040487,-500.0,0.00015055,2]
[404066243,1769781040496,-854.2589148,0.00015055,2]
[404066244,1769781040506,-500.0,0.00015055,2]
[404066245,1769781040515,-500.0,0.00015055,2]
[404066247,1769781040524,-500.0,0.00015055,2]
[404066249,1769781040533,-174.61919141,0.00015055,2]
[404066251,1769781040543,-500.0,0.00015055,2]
[404066253,1769781040552,-578.20924308,0.00015055,2]
[404066255,1769781040561,-500.0,0.00015055,2]
[404066257,1769781040571,-614.97101815,0.00015055,2]
[404066258,1769781040580,-151.0,0.00015055,2]
[404066260,1769781040591,-322.6107,0.00015055,2]
[404066261,1769781040600,-1000.0,0.00015055,2]
[404066262,1769781040609,-1000.0,0.00015055,2]
[404066263,1769781040618,-2000.0,0.00015055,2]
[404066264,1769781040629,-2000.0,0.00015055,2]
[404066265,1769781040638,-1000.0,0.00015055,2]
[404066267,1769781040647,-2000.0,0.00015055,2]
[404066269,1769781040656,-1000.0,0.00015055,2]
[404066271,1769781040667,-2000.0,0.00015055,2]
[404066273,1769781040676,-1000.0,0.00015055,2]
[404066275,1769781040688,-2000.0,0.00015055,2]
[404066276,1769781040697,-1000.0,0.00015055,2]
[404066277,1769781040706,-2000.0,0.00015055,2]
[404066278,1769781040716,-1000.0,0.00015055,2]
[404066279,1769781040733,-2000.0,0.00015055,2]
[404066280,1769781040743,-1000.0,0.00015055,2]
[404066281,1769781040751,-1000.0,0.00015055,2]
[404066282,1769781040760,-1000.0,0.00015055,2]
[404066283,1769781040770,-1000.0,0.00015055,2]
[404066284,1769781040779,-1000.0,0.00015055,2]
[404066285,1769781040789,-209.40437684,0.00015055,2]
[404066286,1769781040799,-439.46,0.00015079,2]
[404066287,1769781040808,-255.0,0.00015083,2]
[404066288,1769781040818,-200.0,0.0001509,2]
[404066289,1769781040827,-500.0,0.00015096,2]
[404066290,1769781040837,-1548.02,0.00015101,2]
[404066291,1769781040847,-217.15233878,0.0001511,2]
[404066292,1769781040856,-1494.42526183,0.00015128,2]
[404066293,1769781040865,-225.18697532,0.00015165,2]
[404066294,1769781040875,-420.0,0.00015209,2]
[404066295,1769781040884,-420.0,0.00015209,2]
[404066296,1769781040893,-233.51889341,0.0001522,2]
[404066297,1769781040903,-382.0,0.00015231,2]
[404066298,1769781040912,-420.0,0.00015251,2]
[404066299,1769781040922,-300.0,0.00015253,2]
[404066300,1769781040932,-166.66,0.00015267,2]
[404066301,1769781040943,-1680.0,0.00015269,2]
[404066302,1769781040952,-300.0,0.0001527,2]
[404066303,1769781040962,-250.0,0.0001527,2]
[404066304,1769781040971,-250.0,0.0001527,2]
[404066305,1769781040981,-195.0,0.0001527,2]
[404066306,1769781040990,-600.0,0.0001527,2]
[404066307,1769781040999,-2500.0,0.0001527,2]
[404066308,1769781041008,-250.0,0.0001527,2]
[404066309,1769781041018,-195.0,0.0001527,2]
[404066310,1769781041028,-333.8,0.0001527,2]
[404066311,1769781041041,-242.15909246,0.00015275,2]
[404066312,1769781041051,-251.11897888,0.0001533,2]
[404066313,1769781041060,-151.0,0.00015359,2]
[404066314,1769781041071,-813.2335489,0.00015366,2]
[404066315,1769781041080,-500.0,0.0001537,2]
[404066316,1769781041090,-1548.02,0.00015375,2]
[404066317,1769781041100,-200.0,0.00015375,2]
[404066318,1769781041112,-200.0,0.00015375,2]
[404066319,1769781041122,-500.0,0.00015375,2]